bitfinex-derivatives/quotes_SOLF0:USTF0_20250530
["timestamp","ask_amount","ask_price","bid_price","bid_amount"]
[1748646663539,0.04043432,157.22,157.21,6.3585]
[1748646663841,38.84,157.27,157.19,0.0428743]
[1748646664043,6.3568,157.26,157.21,6.3584]
[1748646664240,38.84,157.27,157.18,38.84]
[1748646664741,0.0418511,157.24,157.21,0.04559595]
[1748646665345,6.3581,157.22,157.21,0.04559595]
[1748646665546,38.84,157.23,157.14,4.3524]
[1748646665848,38.84,157.23,157.08,10.92512186]
[1748646665849,6.3606,157.16,157.12,6.3621]
[1748646666039,38.84,157.19,157.1,38.84]
[1748646666245,1.0865,157.22,157.1,38.84]
[1748646666246,38.84,157.18,157.1,38.84]
[1748646666446,38.84,157.18,157.09,4.1492]
[1748646666646,0.04084848,157.15,157.12,0.04848427]
[1748646666949,6.3618,157.13,157.12,0.04848427]
[1748646667346,0.04084848,157.15,157.12,0.04848427]
[1748646667553,6.40214848,157.15,157.12,0.04848427]
[1748646667943,0.04084848,157.15,157.12,6.41038427]
[1748646668343,0.04084848,157.15,157.12,0.04848427]
[1748646668549,6.40194848,157.15,157.12,0.04848427]
[1748646668747,0.04084848,157.15,157.12,0.04848427]
[1748646669248,6.3618,157.13,157.12,0.04848427]
[1748646669444,0.04084848,157.15,157.05,551.3545]
[1748646669445,38.86,157.14,157.05,2.1545]
[1748646669852,38.86,157.14,157.02,38.86]
[1748646670358,6.3637,157.09,157.05,6.365]
[1748646670651,6.3637,157.09,157.05,0.04460723]
[1748646670652,0.04867212,157.09,157.05,0.04460723]
[1748646671654,0.04867212,157.09,157.08,6.3638]
[1748646672055,38.86,157.14,157.06,38.86]
[1748646672259,588.18,157.18,157.07,2.0155]
[1748646672751,588.18,157.18,157.08,2.0485]
[1748646672946,588.18,157.18,157.11,0.0478624]
[1748646673155,6.3614,157.14,157.11,0.0478624]
[1748646673751,0.04482848,157.15,157.11,0.0478624]
[1748646674258,6.3617,157.14,157.11,0.0478624]
[1748646674457,0.04482848,157.15,157.11,0.0478624]
[1748646676251,45.2384,157.22,157.11,0.0478624]
[1748646676457,38.88,157.22,157.1,38.88]
[1748646676658,549.54,157.26,157.1,38.88]
[1748646676853,6.3592,157.2,157.16,6.3605]
[1748646677057,38.88,157.25,157.14,38.88]
[1748646677264,0.0421238,157.21,157.18,0.04847651]
[1748646678858,38.88,157.29,157.18,38.92847651]
[1748646679061,6.357,157.25,157.21,6.3583]
[1748646679259,6.357,157.25,157.18,38.88]
[1748646679463,38.88,157.29,157.18,38.88]
[1748646679660,0.04138585,157.25,157.22,0.04015993]
[1748646679861,38.88,157.33,157.23,38.88]
[1748646680062,6.3553,157.29,157.26,6.3561]
[1748646680260,38.88,157.33,157.26,6.3561]
[1748646680461,38.88,157.33,157.25,6.3568]
[1748646680665,6.3554,157.29,157.25,6.3568]
[1748646680858,0.02333077,157.29,157.25,0.04859185]
[1748646681461,6.356,157.28,157.25,0.04859185]
[1748646681660,0.02333077,157.29,157.25,0.04859185]
[1748646682665,6.3558,157.28,157.25,6.40549185]
[1748646682866,6.3558,157.28,157.25,0.04859185]
[1748646683167,0.02333077,157.29,157.25,0.04859185]
[1748646683564,6.3565,157.26,157.25,0.04859185]
[1748646683863,6.3565,157.26,157.25,9.185e-05]
[1748646684058,49.80845263,157.29,157.17,551.6817]
[1748646684260,38.86,157.28,157.17,2.1817]
[1748646684662,6.3586,157.21,157.17,2.1817]
[1748646684864,10.92512186,157.29,157.15,38.86]
[1748646684865,38.86,157.24,157.15,38.86]
[1748646685064,0.04331975,157.22,157.18,0.04079621]
[1748646685365,38.86,157.21,157.18,0.04338687]
[1748646685962,6.3593,157.19,157.18,0.04338687]
[1748646686760,38.86,157.21,157.11,40.9286]
[1748646687757,0.04381171,157.18,157.14,0.04678213]
[1748646688867,38.86,157.26,157.15,38.86]
[1748646689562,12.14472186,157.31,157.15,38.86]
[1748646689764,38.66,157.3,157.16,10.92512186]
[1748646690067,0.04069614,157.25,157.21,0.04348856]
[1748646690762,6.3577,157.23,157.21,0.04348856]
[1748646692066,6.3581,157.22,157.21,0.04348856]
[1748646692270,38.70069614,157.25,157.21,0.04348856]
[1748646692563,6.3581,157.22,157.21,0.04348856]
[1748646693560,38.70069614,157.25,157.15,38.66]
[1748646693764,38.66,157.25,157.15,38.66]
[1748646694163,18.57350914,157.27,157.17,6.3601]
[1748646694371,38.66,157.26,157.15,38.66]
[1748646694671,0.04704808,157.22,157.2,6.3588]
[1748646694965,0.04704808,157.22,157.19,0.04061656]
[1748646695172,38.66,157.27,157.19,38.70061656]
[1748646695767,6.3576,157.24,157.2,6.3589]
[1748646695961,38.66,157.27,157.2,6.3589]
[1748646696273,0.04360966,157.25,157.19,38.70061656]
[1748646696865,0.04360966,157.25,157.2,2.1182]
[1748646697068,6.40080966,157.25,157.2,2.1182]
[1748646697269,0.04360966,157.25,157.2,2.1182]
[1748646698868,0.04360966,157.25,157.22,6.3578]
[1748646699070,0.04360966,157.25,157.21,2.1739]
[1748646699960,0.04360966,157.25,157.2,2.1182]
[1748646700166,0.04360966,157.25,157.19,0.04061656]
[1748646700564,6.3589,157.2,157.19,0.04061656]
[1748646702368,6.3589,157.2,157.19,1.656e-05]
[1748646702767,45.04147566,157.21,157.19,1.656e-05]
[1748646703073,0.04277566,157.21,157.19,1.656e-05]
[1748646703276,38.66,157.26,157.21,6.3585]
[1748646703471,38.66,157.26,157.19,1.656e-05]
[1748646703776,38.66,157.26,157.23,6.3575]
[1748646703973,38.66,157.3,157.23,6.3575]
[1748646704275,0.04213207,157.28,157.25,0.04118378]
[1748646704474,6.3566,157.26,157.25,0.04118378]
[1748646705374,0.04213207,157.28,157.25,0.04118378]
[1748646706973,6.3561,157.27,157.25,0.04118378]
[1748646707369,0.04213207,157.28,157.25,0.04118378]
[1748646708683,6.355,157.3,157.25,0.04118378]
[1748646709283,38.66,157.33,157.25,0.04118378]
[1748646709485,0.02363053,157.31,157.25,0.04118378]
[1748646709680,0.02363053,157.31,157.25,6.39768378]
[1748646710079,6.3555,157.29,157.25,6.39768378]
[1748646710380,0.02363053,157.31,157.25,0.04118378]
[1748646711679,6.3558,157.28,157.25,0.04118378]
[1748646711982,0.02363053,157.31,157.25,0.04118378]
[1748646713191,0.02363053,157.31,157.25,6.39798378]
[1748646713383,0.02363053,157.31,157.25,0.04118378]
[1748646713987,6.3563,157.27,157.25,0.04118378]
[1748646714591,6.3565,157.26,157.25,0.04118378]
[1748646714984,0.02363053,157.28,157.25,0.04118378]
[1748646715189,6.3563,157.27,157.25,0.04118378]
[1748646715492,0.02363053,157.28,157.25,0.04118378]
[1748646715689,6.3565,157.26,157.25,0.04118378]
[1748646715889,0.02363053,157.28,157.25,0.04118378]
[1748646716485,6.3565,157.26,157.25,0.04118378]
[1748646718191,6.3563,157.27,157.25,0.04118378]
[1748646718392,0.02363053,157.28,157.25,0.04118378]
[1748646718693,6.3561,157.27,157.25,0.04118378]
[1748646718886,0.02363053,157.28,157.25,0.04118378]
[1748646719489,6.3563,157.27,157.25,0.04118378]
[1748646719789,0.02363053,157.28,157.25,0.04118378]
[1748646719984,6.3565,157.26,157.25,8.378e-05]
[1748646720291,10.91186968,157.27,157.18,6.3595]
[1748646720493,6.358,157.23,157.13,38.46]
[1748646720793,38.46,157.28,157.17,6.36]
[1748646720997,38.46,157.28,157.13,38.46]
[1748646721193,0.04286829,157.22,157.19,0.04443257]
[1748646721391,6.3585,157.21,157.19,0.04443257]
[1748646721794,0.04286829,157.22,157.19,0.04443257]
[1748646721995,6.3588,157.21,157.19,0.04443257]
[1748646722194,0.04286829,157.22,157.19,0.04443257]
[1748646722595,38.46,157.28,157.19,0.04443257]
[1748646722988,6.3568,157.26,157.22,6.3579]
[1748646723297,6.3568,157.26,157.2,2.07]
[1748646723699,0.02194602,157.25,157.21,0.04556988]
[1748646724693,38.46,157.24,157.21,0.04556988]
[1748646724894,6.3581,157.22,157.21,0.04556988]
[1748646725706,6.3581,157.22,157.21,6.988e-05]
[1748646727098,6.36,157.22,157.08,38.46]
[1748646727294,18.57738244,157.21,157.08,40.6111]
[1748646727492,38.46,157.2,157.08,40.6111]
[1748646727806,18.57738244,157.17,157.08,2.1511]
[1748646728096,38.46,157.16,157.11,0.04120995]
[1748646728302,0.04265264,157.14,157.11,0.04120995]
[1748646728800,6.3622,157.12,157.11,0.04120995]
[1748646728998,44.8222,157.12,157.11,0.04120995]
[1748646729500,6.364,157.08,157.05,2.0367]
[1748646729907,38.46,157.12,157.05,2.0367]
[1748646730694,6.3639,157.08,157.07,0.04173219]
[1748646731001,0.04333903,157.1,157.07,0.04173219]
[1748646731200,6.3635,157.09,157.07,0.04173219]
[1748646732404,6.3638,157.08,157.07,0.04173219]
[1748646732797,44.8438,157.08,157.07,0.04173219]
[1748646733005,38.48,157.08,156.98,2.0748]
[1748646733402,18.57738244,157.07,156.98,2.0748]
[1748646733602,6.3669,157.01,156.98,2.0748]
[1748646733997,6.41388569,157.01,156.98,2.11912574]
[1748646734200,6.3672,157.0,156.98,2.11912574]
[1748646734404,0.04698569,157.01,156.98,0.04432574]
[1748646736398,568.11738244,157.13,156.98,0.04432574]
[1748646736606,38.48,157.12,156.96,38.48]
[1748646736800,6.3645,157.07,157.02,6.366]
[1748646737106,38.48,157.08,157.0,38.48]
[1748646737301,0.04239072,157.06,157.02,0.04666629]
[1748646737607,0.04240383,157.06,157.02,0.04666629]
[1748646739111,0.04240383,157.06,157.05,6.365]
[1748646739315,0.04240383,157.06,157.03,4.1849]
[1748646740214,0.04240383,157.06,157.04,6.3654]
[1748646740920,0.04240383,157.06,157.05,6.365]
[1748646741305,38.48,157.08,157.03,4.1849]
[1748646741513,38.5,157.12,157.03,4.1849]
[1748646741913,38.5,157.15,157.03,4.1849]
[1748646742113,38.5,157.15,157.04,134.06]
[1748646742308,38.5,157.19,157.05,38.5]
[1748646742510,0.04760039,157.11,157.08,0.04440097]
[1748646742715,6.3601,157.18,157.09,38.5]
[1748646742909,38.5,157.19,157.1,2.0069]
[1748646743115,38.5,157.19,157.11,2.1287]
[1748646743316,6.3599,157.18,157.13,6.3616]
[1748646743613,0.02034677,157.17,157.14,38.5285435]
[1748646743818,0.3214,157.27,157.14,38.48]
[1748646743819,6.3576,157.24,157.14,38.48]
[1748646744021,38.48,157.27,157.14,38.48]
[1748646744419,6.3577,157.23,157.18,6.3595]
[1748646744620,38.48,157.27,157.14,38.48]
[1748646744814,38.48,157.27,157.19,0.0466697]
[1748646745019,38.48,157.27,157.2,6.3586]
[1748646745415,38.48,157.27,157.19,0.0466697]
[1748646745618,6.3558,157.28,157.19,2.1047697]
[1748646745814,38.48,157.31,157.22,0.04229551]
[1748646746020,38.48,157.31,157.22,38.52229551]
[1748646746215,6.355,157.3,157.22,38.52229551]
[1748646746612,6.355,157.3,157.23,2.0222]
[1748646747120,38.48,157.31,157.23,2.0222]
[1748646747317,38.48,157.31,157.25,0.04785125]
[1748646748323,6.3565,157.26,157.25,0.04785125]
[1748646748521,38.48,157.27,157.18,38.48]
[1748646748823,38.48,157.26,157.18,38.48]
[1748646749122,38.48,157.26,157.16,2.1289]
[1748646749319,6.3577,157.23,157.18,6.3593]
[1748646749523,0.04389559,157.22,157.19,0.04383066]
[1748646750523,6.3589,157.2,157.19,0.04383066]
[1748646752123,38.32389559,157.22,157.19,0.04383066]
[1748646752526,38.32389559,157.22,157.19,3.066e-05]
[1748646753028,6.3589,157.2,157.19,3.066e-05]
[1748646753926,6.3589,157.2,157.1,42.4369]
[1748646753927,6.36,157.2,157.1,2.1064]
[1748646754116,38.28,157.22,157.1,2.1064]
[1748646754825,18.57738244,157.19,157.14,0.0402519]
[1748646755026,38.75247896,157.18,157.06,38.28]
[1748646755224,40.0207,157.18,157.06,38.28]
[1748646755417,18.57738244,157.15,157.02,38.28]
[1748646755627,38.28,157.14,157.02,38.28]
[1748646756027,0.04158251,157.1,157.06,0.04701901]
[1748646756227,38.28,157.09,157.06,0.04701901]
[1748646756624,6.3642,157.07,157.06,0.00634852]
[1748646757725,6.3664,157.02,156.98,38.28]
[1748646757921,38.28,157.05,156.97,8.3896]
[1748646758226,6.3663,157.02,156.97,2.0214]
[1748646758530,38.28,157.05,156.97,2.0214]
[1748646758736,0.04346536,157.01,156.98,0.04737923]
[1748646760732,38.34346536,157.01,156.98,0.04737923]
[1748646761426,6.3674,156.99,156.98,0.04737923]
[1748646761628,38.34346536,157.01,156.91,4.044]
[1748646761933,38.3,157.01,156.91,4.044]
[1748646762332,38.3,157.01,156.91,2.0109]
[1748646762733,0.04343297,156.98,156.94,0.04734492]
[1748646762930,0.04343297,156.98,156.94,6.41654492]
[1748646763228,38.3,157.01,156.94,38.34734492]
[1748646763428,38.3,157.05,157.01,6.3665]
[1748646763623,18.57738244,157.12,156.95,2.0474]
[1748646763624,38.3,157.1,156.98,38.3]
[1748646764533,0.04884008,157.06,157.02,0.04339234]
[1748646765929,0.04884008,157.06,157.03,6.3655]
[1748646766136,0.04884008,157.06,157.03,2.0474]
[1748646766534,38.3,157.1,157.03,2.0474]
[1748646767532,6.365,157.06,157.03,2.0474]
[1748646768038,0.04746273,157.08,157.03,2.0474]
[1748646768237,0.04746273,157.08,157.04,6.3653]
[1748646768436,0.04746273,157.08,157.03,2.0474]
[1748646768827,6.41156273,157.08,157.03,8.413]
[1748646769131,38.3,157.14,157.03,2.0474]
[1748646769333,6.3636,157.09,157.04,6.3653]
[1748646770134,0.04827384,157.08,157.05,0.04048721]
[1748646772938,38.3,157.14,157.06,38.3]
[1748646773345,38.3,157.18,157.06,38.3]
[1748646773547,38.3,157.19,157.07,18.57738244]
[1748646773846,38.3,157.2,157.07,18.57738244]
[1748646774044,0.03832244,157.15,157.11,0.04886036]
[1748646774243,38.3,157.2,157.12,38.3]
[1748646774443,38.3,157.2,157.13,4.2532]
[1748646774640,588.14,157.24,157.13,4.2532]
[1748646774836,6.3595,157.19,157.15,6.3606]
[1748646775041,588.14,157.24,157.13,4.2532]
[1748646775245,588.14,157.24,157.17,0.0432389]
[1748646775442,6.3593,157.2,157.17,0.0432389]
[1748646776044,6.3594,157.19,157.17,0.0432389]
[1748646776437,588.14,157.24,157.17,0.0432389]
[1748646776647,6.3597,157.18,157.17,0.0432389]
[1748646776848,588.14,157.24,157.17,0.0432389]
[1748646777648,6.3582,157.22,157.17,6.4030389]
[1748646777848,588.14,157.24,157.17,0.0432389]
[1748646779451,6.3597,157.18,157.17,0.0432389]
[1748646779649,38.3,157.2,157.08,40.4228]
[1748646779839,38.3,157.2,157.08,42.4809]
[1748646780039,6.3603,157.17,157.12,6.3619]
[1748646780244,38.3,157.2,157.08,42.4809]
[1748646780644,0.04193609,157.16,157.12,0.04114331]
[1748646781545,0.04193609,157.16,157.14,6.3614]
[1748646781950,0.04193609,157.16,157.12,38.14114331]
[1748646782151,38.3,157.2,157.12,38.14114331]
[1748646782755,6.3596,157.19,157.14,6.3611]
[1748646783050,6.3596,157.19,157.12,38.1]
[1748646783246,38.3,157.2,157.14,0.04644243]
[1748646783646,6.3625,157.12,157.08,42.2809]
[1748646783846,38.1,157.16,157.08,42.2809]
[1748646784849,0.04178589,157.14,157.1,0.04470873]
[1748646785253,6.3618,157.13,157.1,0.04470873]
[1748646785649,0.04178589,157.14,157.1,0.04470873]
[1748646787946,6.3621,157.13,157.1,0.04470873]
[1748646788145,0.04178589,157.14,157.1,0.04470873]
[1748646791350,0.04178589,157.14,157.12,6.3619]
[1748646791554,0.04178589,157.14,157.11,4.0242]
[1748646791947,0.04178589,157.14,157.1,0.04470873]
[1748646792360,6.3626,157.11,157.1,0.04470873]
[1748646792959,44.4623,157.12,157.1,0.04470873]
[1748646793160,38.1,157.12,157.1,0.04470873]
[1748646793460,6.3626,157.11,157.1,0.04470873]
[1748646794161,0.04178589,157.14,157.1,0.04470873]
[1748646794755,38.1,157.2,157.1,6.46560873]
[1748646794956,38.1,157.2,157.1,6.4209]
[1748646795362,587.94,157.24,157.1,6.4209]
[1748646795564,587.94,157.24,157.11,18.61675705]
[1748646795859,6.36,157.18,157.16,0.04464589]
[1748646796067,587.94,157.24,157.16,0.04464589]
[1748646796762,6.3594,157.19,157.16,0.04464589]
[1748646797056,6.3594,157.19,157.16,6.40494589]
[1748646797463,6.3598,157.18,157.16,0.04464589]
[1748646797960,587.94,157.24,157.16,0.04464589]
[1748646798262,587.94,157.24,157.16,4.589e-05]
[1748646798565,6.3601,157.17,157.16,4.589e-05]
[1748646799058,38.1,157.22,157.16,4.589e-05]
[1748646799556,0.04730567,157.21,157.16,4.589e-05]
[1748646800261,6.3598,157.18,157.16,4.589e-05]
[1748646800659,0.04730567,157.21,157.16,4.589e-05]
[1748646801763,6.3596,157.19,157.16,4.589e-05]
[1748646801963,0.04730567,157.21,157.16,4.589e-05]
[1748646802969,6.40580567,157.21,157.16,6.36034589]
[1748646803162,0.04730567,157.21,157.16,4.589e-05]
[1748646803470,0.04730567,157.21,157.18,6.3595]
[1748646803662,0.04730567,157.21,157.16,4.589e-05]
[1748646804763,6.40610567,157.21,157.18,6.3595]
[1748646804967,0.04730567,157.21,157.16,4.589e-05]
[1748646806065,6.40590567,157.21,157.18,6.3595]
[1748646806571,6.3601,157.17,157.16,4.589e-05]
[1748646812567,38.1,157.18,157.16,4.589e-05]
[1748646813665,6.3601,157.17,157.16,4.589e-05]
[1748646816467,6.3601,157.17,157.03,22.67367771]
[1748646816468,6.3639,157.08,157.05,37.92]
[1748646816772,37.92,157.13,157.05,37.92]
[1748646817272,37.92,157.13,157.06,2.1472]
[1748646817568,6.4087171,157.11,157.08,0.04389151]
[1748646818869,0.0461171,157.11,157.08,0.04389151]
[1748646819263,6.3634,157.09,157.08,0.04389151]
[1748646819673,6.4091171,157.11,157.08,0.04389151]
[1748646819869,0.0461171,157.11,157.08,0.04389151]
[1748646820668,6.3631,157.1,157.08,0.04389151]
[1748646822269,6.3634,157.09,157.08,0.04389151]
[1748646824572,6.3634,157.09,157.08,0.00556907]
[1748646829085,37.94,157.09,156.97,37.94]
[1748646829284,18.63910439,157.07,156.97,2.0455]
[1748646829675,6.3675,156.99,156.97,2.0455]
[1748646829879,37.94,157.03,156.97,2.0455]
[1748646830182,37.94,157.03,156.98,0.04610203]
[1748646830183,6.3674,156.99,156.98,0.04610203]
[1748646830882,6.3674,156.99,156.98,2.03e-06]
[1748646831086,44.3074,156.99,156.98,2.03e-06]
[1748646831978,6.3703,156.92,156.9,2.129]
[1748646832183,37.94,156.99,156.9,2.129]
[1748646832779,48.90095142,156.99,156.87,4.2533]
[1748646832993,0.04015884,156.95,156.91,0.04590933]
[1748646833186,37.98015884,156.95,156.91,0.04590933]
[1748646833788,6.3703,156.92,156.91,9.33e-06]
[1748646835105,6.3736,156.84,156.79,2.1571]
[1748646835396,37.96,156.87,156.79,2.1571]
[1748646835588,6.3752,156.8,156.77,2.1833]
[1748646835994,37.96,156.84,156.77,2.1833]
[1748646836190,37.96,156.84,156.76,2.0584]
[1748646836396,0.04724727,156.82,156.79,0.04061735]
[1748646836597,0.04724727,156.82,156.73,2.0625]
[1748646837296,6.3768,156.76,156.7,6.3791]
[1748646837686,0.04628513,156.75,156.71,0.04746974]
[1748646837894,44.3553,156.8,156.72,37.98]
[1748646837895,37.98,156.8,156.72,37.98]
[1748646838099,37.98,156.8,156.75,6.3769]
[1748646838296,44.3552,156.8,156.72,37.98]
[1748646838595,37.98,156.83,156.72,37.98]
[1748646838794,44.3542,156.83,156.76,6.3764]
[1748646838994,0.04488399,156.81,156.78,0.04548208]
[1748646839394,6.3754,156.8,156.78,0.04548208]
[1748646839594,37.98,156.79,156.69,2.0625]
[1748646839790,6.3775,156.75,156.69,8.442]
[1748646840197,37.98,156.79,156.69,2.0625]
[1748646840499,37.98,156.8,156.7,37.98]
[1748646840698,0.04521766,156.77,156.73,0.04820264]
[1748646840898,0.04521766,156.77,156.74,6.3775]
[1748646841099,0.04521766,156.77,156.73,0.04820264]
[1748646841300,37.82,156.83,156.73,0.04820264]
[1748646841598,37.82,156.83,156.7,37.98]
[1748646842193,0.04127312,156.78,156.75,0.04442327]
[1748646843595,6.3768,156.76,156.75,0.04442327]
[1748646844194,0.04127312,156.78,156.66,4.2327]
[1748646844501,10.9829922,156.76,156.64,2.0935]
[1748646844997,11.1509922,156.76,156.64,2.0935]
[1748646845190,11.1509922,156.76,156.68,0.04790371]
[1748646845191,10.9829922,156.72,156.68,0.04790371]
[1748646845396,37.84,156.71,156.58,39.8459]
[1748646845798,37.84,156.71,156.58,46.2299]
[1748646846002,18.72607035,156.7,156.58,46.2299]
[1748646846197,18.72607035,156.7,156.58,2.0059]
[1748646846400,0.04691179,156.66,156.62,0.04797251]
[1748646846696,37.84,156.65,156.62,0.04797251]
[1748646847805,6.3819,156.64,156.62,0.04797251]
[1748646848002,37.84,156.65,156.62,0.04797251]
[1748646850104,6.382,156.63,156.62,0.04797251]
[1748646850303,37.84,156.65,156.62,0.04797251]
[1748646850701,0.04691179,156.66,156.62,0.04797251]
[1748646850902,0.04691179,156.66,156.62,6.43037251]
[1748646851100,0.04691179,156.66,156.62,0.04797251]
[1748646852003,6.382,156.63,156.62,0.04797251]
[1748646853004,25.10607035,156.63,156.48,37.88]
[1748646853306,18.72607035,156.59,156.49,2.0324]
[1748646853508,6.386,156.54,156.48,4.2119]
[1748646853707,37.88,156.58,156.48,10.5999]
[1748646853907,0.04363922,156.55,156.51,0.04295449]
[1748646854304,37.88,156.54,156.51,0.04295449]
[1748646854707,0.04363922,156.55,156.51,0.04295449]
[1748646855505,0.04363922,156.55,156.53,6.3858]
[1748646855703,0.04363922,156.55,156.51,0.04295449]
[1748646855908,37.88,156.6,156.55,6.385]
[1748646856202,6.3838,156.59,156.48,42.0919]
[1748646856604,37.88,156.6,156.48,42.0919]
[1748646856799,37.88,156.65,156.52,0.04072099]
[1748646856998,37.88,156.66,156.53,37.88]
[1748646857311,37.88,156.66,156.54,2.1757]
[1748646857508,37.88,156.66,156.55,6.3851]
[1748646857808,37.88,156.66,156.54,2.1757]
[1748646858020,0.04841248,156.62,156.59,0.0410268]
[1748646858313,6.3832,156.6,156.59,0.0410268]
[1748646858608,37.92841248,156.62,156.59,0.0410268]
[1748646859203,6.3832,156.6,156.59,0.0410268]
[1748646859410,37.92841248,156.62,156.59,0.0410268]
[1748646859709,0.04841248,156.62,156.61,6.3828]
[1748646859906,37.88,156.68,156.6,2.0853]
[1748646860305,6.3819,156.64,156.6,8.4683]
[1748646860610,37.88,156.68,156.6,2.0853]
[1748646861010,0.04183904,156.66,156.62,0.04463322]
[1748646861807,0.04183904,156.66,156.63,6.3819]
[1748646862114,0.04183904,156.66,156.62,0.04463322]
[1748646862307,0.04183904,156.66,156.63,6.3818]
[1748646862513,0.04183904,156.66,156.62,0.04463322]
[1748646862910,551.28,156.71,156.62,0.04463322]
[1748646863508,551.28,156.71,156.63,6.3818]
[1748646863709,551.28,156.71,156.61,39.959]
[1748646863908,6.381,156.66,156.64,0.04762539]
[1748646864509,6.3805,156.67,156.64,0.04762539]
[1748646864709,0.04310069,156.68,156.64,0.04762539]
[1748646865816,6.3811,156.66,156.64,0.04762539]
[1748646866219,6.3805,156.67,156.64,0.04762539]
[1748646866414,0.04310069,156.68,156.64,0.04762539]
[1748646866813,6.3806,156.67,156.64,0.04762539]
[1748646868016,0.04310069,156.68,156.64,0.04762539]
[1748646868419,37.92310069,156.68,156.64,0.04762539]
[1748646868623,6.3812,156.65,156.64,0.001191]
[1748646868921,37.92310069,156.68,156.64,0.001191]
[1748646869219,44.30340069,156.68,156.64,0.001191]
[1748646869421,37.92310069,156.68,156.64,0.001191]
[1748646869721,6.3805,156.67,156.64,0.001191]
[1748646870216,6.381,156.66,156.64,0.001191]
[1748646870417,37.92310069,156.68,156.64,0.001191]
[1748646870814,6.3806,156.67,156.64,0.001191]
[1748646871122,37.92310069,156.68,156.64,0.001191]
[1748646871415,0.04310069,156.68,156.65,6.3811]
[1748646871620,0.04310069,156.68,156.64,0.001191]
[1748646871820,6.42320069,156.68,156.64,6.382791]
[1748646872016,0.04310069,156.68,156.64,6.382791]
[1748646872217,0.04310069,156.68,156.64,0.001191]
[1748646872418,6.42330069,156.68,156.64,6.382791]
[1748646872621,0.04310069,156.68,156.64,0.001191]
[1748646873021,6.3811,156.66,156.64,0.001191]
[1748646873415,0.04310069,156.68,156.64,0.001191]
[1748646873610,6.3812,156.65,156.64,0.001191]
[1748646873824,0.04310069,156.68,156.64,0.001191]
[1748646874016,6.3805,156.67,156.64,0.001191]
[1748646874215,0.04310069,156.68,156.64,0.001191]
[1748646875320,0.04310069,156.68,156.66,6.3807]
[1748646875517,37.74,156.74,156.64,0.001191]
[1748646875816,37.74,156.74,156.63,39.947]
[1748646876524,0.04755059,156.7,156.67,0.04854803]
[1748646877621,6.38,156.68,156.67,0.04854803]
[1748646877817,0.04755059,156.7,156.67,0.04854803]
[1748646878912,6.42685059,156.7,156.67,0.04854803]
[1748646879118,0.04755059,156.7,156.67,0.04854803]
[1748646879317,6.42685059,156.7,156.67,0.04854803]
[1748646879514,0.04755059,156.7,156.67,0.04854803]
[1748646881519,6.38,156.68,156.67,0.04854803]
[1748646881723,0.04755059,156.7,156.67,0.04854803]
[1748646882124,6.3796,156.69,156.67,0.04854803]
[1748646882523,0.04755059,156.7,156.67,0.04854803]
[1748646882724,6.42695059,156.7,156.67,0.04854803]
[1748646882925,0.04755059,156.7,156.67,0.04854803]
[1748646883724,6.3796,156.69,156.67,0.04854803]
[1748646884029,0.04755059,156.7,156.67,0.04854803]
[1748646884325,6.42685059,156.7,156.67,0.04854803]
[1748646884627,0.04755059,156.7,156.67,0.04854803]
[1748646885728,0.04755059,156.7,156.68,6.3799]
[1748646885929,0.04755059,156.7,156.68,8.4959]
[1748646886129,0.04755059,156.7,156.69,6.3796]
[1748646886320,37.74,156.74,156.68,2.116]
[1748646886723,37.74,156.74,156.68,8.4958]
[1748646886924,37.74,156.74,156.68,2.116]
[1748646887224,6.42051287,156.73,156.69,6.3794]
[1748646887423,0.04221287,156.73,156.69,6.3794]
[1748646887722,6.3796,156.69,156.68,2.116]
[1748646888123,0.04221287,156.73,156.67,0.04854803]
[1748646888427,6.38,156.68,156.67,0.04854803]
[1748646889135,0.04439475,156.72,156.67,0.04854803]
[1748646890324,6.38,156.68,156.67,0.04854803]